[Event "Early-Titled-Tuesday-Blitz-October-10-2023"]
[Site "Chess.com"]
[Date "2023.10.10"]
[Round "5"]
[White "Goi_Manne"]
[Black "FERNANDEZL1983"]
[Result "0-1"]
[WhiteElo "2295"]
[BlackElo "2515"]
[TimeControl "180+1"]
[EndTime "8:55:22 PDT"]
[Termination "FERNANDEZL1983 won by checkmate"]

1. e4 {[%clk 0:03:00.9]} 1... c5 {[%clk 0:02:59.2]} 2. Nf3 {[%clk 0:02:59.4]}
2... a6 {[%clk 0:02:59.5]} 3. c4 {[%clk 0:02:58.3]} 3... Nc6 {[%clk 0:02:59.1]}
4. Nc3 {[%clk 0:02:52.9]} 4... e5 {[%clk 0:02:58.1]} 5. g3 {[%clk 0:02:51.1]}
5... d6 {[%clk 0:02:58]} 6. Bg2 {[%clk 0:02:51.3]} 6... g6 {[%clk 0:02:58]} 7.
O-O {[%clk 0:02:51.8]} 7... Bg7 {[%clk 0:02:58.5]} 8. d3 {[%clk 0:02:52.1]} 8...
Nge7 {[%clk 0:02:58.9]} 9. a3 {[%clk 0:02:48.7]} 9... O-O {[%clk 0:02:59.4]} 10.
Bd2 {[%clk 0:02:48.3]} 10... h6 {[%clk 0:02:59.9]} 11. Rb1 {[%clk 0:02:48.2]}
11... Rb8 {[%clk 0:02:59.6]} 12. Nd5 {[%clk 0:02:48.2]} 12... b5 {[%clk
0:02:58.3]} 13. Qc2 {[%clk 0:02:45.6]} 13... f5 {[%clk 0:02:52.9]} 14. b4 {[%clk
0:02:40.7]} 14... fxe4 {[%clk 0:02:44.2]} 15. dxe4 {[%clk 0:02:37.1]} 15... bxc4
{[%clk 0:02:42.6]} 16. Qxc4 {[%clk 0:02:33.2]} 16... Be6 {[%clk 0:02:40.9]} 17.
bxc5 {[%clk 0:02:22.5]} 17... Rxb1 {[%clk 0:02:39.5]} 18. Rxb1 {[%clk 0:02:22]}
18... dxc5 {[%clk 0:02:39.9]} 19. Nxe7+ {[%clk 0:02:17.1]} 19... Qxe7 {[%clk
0:02:39.5]} 20. Qxa6 {[%clk 0:02:17.5]} 20... Nd4 {[%clk 0:02:38.9]} 21. Nxd4
{[%clk 0:02:16.3]} 21... exd4 {[%clk 0:02:39.2]} 22. Rb7 {[%clk 0:02:07]} 22...
Bc8 {[%clk 0:02:16.5]} 23. Qc4+ {[%clk 0:01:38.4]} 23... Qe6 {[%clk 0:02:16.1]}
24. Qxe6+ {[%clk 0:01:31.7]} 24... Bxe6 {[%clk 0:02:17]} 25. Re7 {[%clk
0:01:17.9]} 25... Bf7 {[%clk 0:02:16.7]} 26. e5 {[%clk 0:01:15.2]} 26... c4
{[%clk 0:01:48.2]} 27. e6 {[%clk 0:01:11]} 27... Be8 {[%clk 0:01:48.3]} 28. Rc7
{[%clk 0:00:58.2]} 28... c3 {[%clk 0:01:47.3]} 29. e7 {[%clk 0:00:28.6]} 29...
Rf5 {[%clk 0:01:38.3]} 30. Bc1 {[%clk 0:00:19.2]} 30... d3 {[%clk 0:01:37]} 31.
Rc8 {[%clk 0:00:14.4]} 31... Kf7 {[%clk 0:01:34]} 32. Rd8 {[%clk 0:00:14.8]}
32... d2 {[%clk 0:01:28.9]} 33. Bxd2 {[%clk 0:00:15.5]} 33... cxd2 {[%clk
0:01:28.8]} 34. Rxd2 {[%clk 0:00:16.4]} 34... Kxe7 {[%clk 0:01:29]} 35. Re2+
{[%clk 0:00:16.9]} 35... Re5 {[%clk 0:01:29.1]} 36. Ra2 {[%clk 0:00:16]} 36...
Ra5 {[%clk 0:01:28.3]} 37. Bh1 {[%clk 0:00:16]} 37... Re5 {[%clk 0:01:25.9]} 38.
Bf3 {[%clk 0:00:15.8]} 38... Bd7 {[%clk 0:01:24.7]} 39. Kg2 {[%clk 0:00:15.9]}
39... Ra5 {[%clk 0:01:23.1]} 40. h4 {[%clk 0:00:14.6]} 40... Be6 {[%clk
0:01:22.2]} 41. Re2 {[%clk 0:00:14.4]} 41... Kf7 {[%clk 0:01:20.4]} 42. Re3
{[%clk 0:00:13.8]} 42... Bf8 {[%clk 0:01:20]} 43. Rc3 {[%clk 0:00:12.6]} 43...
Bd6 {[%clk 0:01:18.5]} 44. Rc6 {[%clk 0:00:12.2]} 44... Ke7 {[%clk 0:01:18.6]}
45. Rc3 {[%clk 0:00:10.7]} 45... Rxa3 {[%clk 0:01:18.1]} 46. Rc1 {[%clk
0:00:10.6]} 46... Ra2 {[%clk 0:01:12.9]} 47. Re1 {[%clk 0:00:11.3]} 47... Kf6
{[%clk 0:01:12.5]} 48. Bd1 {[%clk 0:00:05.4]} 48... Bc5 {[%clk 0:01:08.1]} 49.
Rf1 {[%clk 0:00:05.7]} 49... Bd5+ {[%clk 0:01:06.1]} 50. Kh2 {[%clk 0:00:05.9]}
50... Rxf2+ {[%clk 0:01:04.9]} 51. Rxf2+ {[%clk 0:00:04.8]} 51... Bxf2 {[%clk
0:01:05.8]} 52. Bg4 {[%clk 0:00:04.6]} 52... h5 {[%clk 0:01:03.6]} 53. Bh3
{[%clk 0:00:04.9]} 53... Be6 {[%clk 0:01:01.9]} 54. Bf1 {[%clk 0:00:05.3]} 54...
Bg4 {[%clk 0:01:02.1]} 55. Kg2 {[%clk 0:00:05.7]} 55... Be3 {[%clk 0:01:02.3]}
56. Bb5 {[%clk 0:00:06.5]} 56... Bf5 {[%clk 0:01:02.4]} 57. Bf1 {[%clk 0:00:07]}
57... Ke5 {[%clk 0:01:02.3]} 58. Be2 {[%clk 0:00:07]} 58... Kd4 {[%clk
0:01:02.6]} 59. Bd1 {[%clk 0:00:06.5]} 59... Kd3 {[%clk 0:01:00.8]} 60. Ba4
{[%clk 0:00:06.3]} 60... Ke2 {[%clk 0:01:00.6]} 61. Bc6 {[%clk 0:00:05.9]} 61...
Ke1 {[%clk 0:00:58.1]} 62. Bf3 {[%clk 0:00:06.3]} 62... Bf2 {[%clk 0:00:57.9]}
63. Bb7 {[%clk 0:00:06.6]} 63... Bd3 {[%clk 0:00:57.7]} 64. Bf3 {[%clk
0:00:06.3]} 64... Bf5 {[%clk 0:00:57]} 65. Bc6 {[%clk 0:00:06.2]} 65... Bd4
{[%clk 0:00:57]} 66. Bf3 {[%clk 0:00:06.2]} 66... Be5 {[%clk 0:00:57.5]} 67. Bb7
{[%clk 0:00:06.7]} 67... Kd2 {[%clk 0:00:57.8]} 68. Bf3 {[%clk 0:00:07]} 68...
Ke3 {[%clk 0:00:58.3]} 69. Bd1 {[%clk 0:00:06.9]} 69... Bg4 {[%clk 0:00:58.3]}
70. Bc2 {[%clk 0:00:07]} 70... Bf5 {[%clk 0:00:58.1]} 71. Bd1 {[%clk 0:00:07.6]}
71... Bf6 {[%clk 0:00:58.2]} 72. Bb3 {[%clk 0:00:07.7]} 72... Kd4 {[%clk
0:00:58.5]} 73. Bf7 {[%clk 0:00:07.8]} 73... Ke5 {[%clk 0:00:58.6]} 74. Be8
{[%clk 0:00:04.9]} 74... Be4+ {[%clk 0:00:58.6]} 75. Kh3 {[%clk 0:00:04.7]}
75... Be7 {[%clk 0:00:57.8]} 76. Bb5 {[%clk 0:00:04]} 76... Bc5 {[%clk
0:00:57.4]} 77. Kh2 {[%clk 0:00:03.9]} 77... Kf6 {[%clk 0:00:57.4]} 78. Be8
{[%clk 0:00:04.8]} 78... Bf3 {[%clk 0:00:56.8]} 79. Ba4 {[%clk 0:00:05.7]} 79...
g5 {[%clk 0:00:56.5]} 80. Bb3 {[%clk 0:00:06.3]} 80... g4 {[%clk 0:00:56.1]} 81.
Bc2 {[%clk 0:00:06]} 81... Bd6 {[%clk 0:00:54.1]} 82. Bb3 {[%clk 0:00:06.1]}
82... Bc6 {[%clk 0:00:54.1]} 83. Bg8 {[%clk 0:00:06.3]} 83... Be8 {[%clk
0:00:54.2]} 84. Bb3 {[%clk 0:00:07.1]} 84... Ke5 {[%clk 0:00:54.5]} 85. Bc2
{[%clk 0:00:06.9]} 85... Kd4 {[%clk 0:00:55]} 86. Kg2 {[%clk 0:00:07.4]} 86...
Ke3 {[%clk 0:00:55.6]} 87. Bf5 {[%clk 0:00:07.4]} 87... Bc6+ {[%clk 0:00:55.4]}
88. Kh2 {[%clk 0:00:07.9]} 88... Kf2 {[%clk 0:00:55.7]} 89. Bg6 {[%clk
0:00:08.4]} 89... Bxg3# {[%clk 0:00:56.2]} 0-1

[Event "Early-Titled-Tuesday-Blitz-October-10-2023"]
[Site "Chess.com"]
[Date "2023.10.10"]
[Round "5"]
[White "masnyszachistaaa"]
[Black "TigrVShlyape"]
[Result "0-1"]
[WhiteElo "2589"]
[BlackElo "2928"]
[TimeControl "180+1"]
[EndTime "8:55:23 PDT"]
[Termination "TigrVShlyape won by resignation"]

1. e4 {[%clk 0:03:00.9]} 1... c5 {[%clk 0:02:59.2]} 2. Nf3 {[%clk 0:03:01.1]}
2... e6 {[%clk 0:02:57.6]} 3. g3 {[%clk 0:03:01.2]} 3... a6 {[%clk 0:02:56.4]}
4. Bg2 {[%clk 0:03:01.3]} 4... b5 {[%clk 0:02:57]} 5. O-O {[%clk 0:03:01.2]}
5... Bb7 {[%clk 0:02:57.4]} 6. Re1 {[%clk 0:03:01.6]} 6... Nc6 {[%clk
0:02:54.9]} 7. c3 {[%clk 0:03:00.8]} 7... c4 {[%clk 0:02:52.1]} 8. b3 {[%clk
0:02:59.8]} 8... Rc8 {[%clk 0:02:46.6]} 9. Na3 {[%clk 0:02:37.4]} 9... Na5
{[%clk 0:02:42.9]} 10. Rb1 {[%clk 0:02:06.1]} 10... Qc7 {[%clk 0:02:30.2]} 11.
bxc4 {[%clk 0:01:40.2]} 11... Nxc4 {[%clk 0:02:27.3]} 12. Nxc4 {[%clk
0:01:39.4]} 12... Qxc4 {[%clk 0:02:27.1]} 13. a4 {[%clk 0:01:34.5]} 13... Nf6
{[%clk 0:01:45.4]} 14. axb5 {[%clk 0:01:28.7]} 14... axb5 {[%clk 0:01:44.6]} 15.
e5 {[%clk 0:01:12.4]} 15... Ng4 {[%clk 0:01:21.2]} 16. Nd4 {[%clk 0:01:01.4]}
16... Bxg2 {[%clk 0:01:19.4]} 17. Kxg2 {[%clk 0:01:02.3]} 17... h5 {[%clk
0:01:11.8]} 18. Rxb5 {[%clk 0:00:43.4]} 18... Bc5 {[%clk 0:01:07.6]} 19. d3
{[%clk 0:00:23.5]} 19... Qa2 {[%clk 0:00:48.6]} 20. Qd2 {[%clk 0:00:13.1]} 20...
Qa8+ {[%clk 0:00:47.4]} 21. f3 {[%clk 0:00:11.5]} 21... Bxd4 {[%clk 0:00:46.6]}
22. cxd4 {[%clk 0:00:11.2]} 22... Nh6 {[%clk 0:00:45.6]} 23. Rc5 {[%clk
0:00:09.5]} 23... O-O {[%clk 0:00:43.6]} 24. Qc2 {[%clk 0:00:09.7]} 24... Nf5
{[%clk 0:00:42.7]} 25. Bb2 {[%clk 0:00:05.6]} 25... Ne7 {[%clk 0:00:37.3]} 26.
Rc1 {[%clk 0:00:04.7]} 26... Rb8 {[%clk 0:00:33.6]} 27. Bc3 {[%clk 0:00:02.8]}
27... Nd5 {[%clk 0:00:32.3]} 28. Bd2 {[%clk 0:00:03.3]} 28... Qb7 {[%clk
0:00:27.8]} 29. Qa2 {[%clk 0:00:02.7]} 29... Qb3 {[%clk 0:00:25.5]} 30. Qc2
{[%clk 0:00:02.9]} 30... Qxc2 {[%clk 0:00:25]} 31. R1xc2 {[%clk 0:00:03.5]}
31... Rb3 {[%clk 0:00:25.3]} 32. Ra5 {[%clk 0:00:03]} 32... Rxd3 {[%clk
0:00:25.1]} 33. Ra4 {[%clk 0:00:03.3]} 33... f6 {[%clk 0:00:24.1]} 34. exf6
{[%clk 0:00:03.3]} 34... gxf6 {[%clk 0:00:24.1]} 35. f4 {[%clk 0:00:03.9]} 35...
Kg7 {[%clk 0:00:23.6]} 36. Kf2 {[%clk 0:00:04.4]} 36... Kg6 {[%clk 0:00:23.2]}
37. Ke2 {[%clk 0:00:04.8]} 37... Rb3 {[%clk 0:00:23.3]} 38. Ra7 {[%clk
0:00:04.7]} 38... Rf7 {[%clk 0:00:21.6]} 39. Ra6 {[%clk 0:00:04.5]} 39... Kf5
{[%clk 0:00:21.4]} 40. Ra4 {[%clk 0:00:03.3]} 40... h4 {[%clk 0:00:20.3]} 41.
gxh4 {[%clk 0:00:02.8]} 41... Rh7 {[%clk 0:00:20.3]} 42. Be1 {[%clk 0:00:03.1]}
42... Nxf4+ {[%clk 0:00:19.6]} 43. Kf1 {[%clk 0:00:03.6]} 43... Rf3+ {[%clk
0:00:19.1]} 44. Rf2 {[%clk 0:00:03.4]} 44... Rxf2+ {[%clk 0:00:19.2]} 45. Bxf2
{[%clk 0:00:04.3]} 45... Nd5 {[%clk 0:00:18.5]} 46. Ra7 {[%clk 0:00:04.3]} 46...
Kg4 {[%clk 0:00:17.9]} 47. Kg2 {[%clk 0:00:03.8]} 47... Nf4+ {[%clk 0:00:18.1]}
48. Kf1 {[%clk 0:00:04]} 48... f5 {[%clk 0:00:18.4]} 49. Bg3 {[%clk 0:00:02.4]}
49... Nd5 {[%clk 0:00:18.2]} 50. Bf2 {[%clk 0:00:01.4]} 50... f4 {[%clk
0:00:17.6]} 51. Ke2 {[%clk 0:00:01.5]} 51... f3+ {[%clk 0:00:15.1]} 52. Kd3
{[%clk 0:00:01.5]} 52... Nf4+ {[%clk 0:00:15.1]} 53. Ke4 {[%clk 0:00:01.8]}
53... Nh3 {[%clk 0:00:15.4]} 54. Bg3 {[%clk 0:00:01.3]} 54... f2 {[%clk
0:00:15.4]} 55. Ra1 {[%clk 0:00:01.4]} 55... Rf7 {[%clk 0:00:15.2]} 56. Rf1
{[%clk 0:00:02]} 56... Rf5 {[%clk 0:00:15.5]} 57. d5 {[%clk 0:00:02]} 57...
exd5+ {[%clk 0:00:15.1]} 58. Ke3 {[%clk 0:00:02.6]} 58... Rf3+ {[%clk
0:00:15.2]} 59. Ke2 {[%clk 0:00:02.8]} 59... d4 {[%clk 0:00:13.4]} 60. Bxf2
{[%clk 0:00:02.7]} 60... d3+ {[%clk 0:00:13.8]} 61. Ke1 {[%clk 0:00:03]} 61...
d2+ {[%clk 0:00:14.2]} 62. Kxd2 {[%clk 0:00:03.4]} 62... Rxf2+ {[%clk
0:00:14.6]} 63. Rxf2 {[%clk 0:00:03.7]} 63... Nxf2 {[%clk 0:00:15]} 64. Ke3
{[%clk 0:00:04.4]} 64... Nh3 {[%clk 0:00:13.2]} 65. Ke4 {[%clk 0:00:04.5]} 65...
Nf4 {[%clk 0:00:13.6]} 66. Ke5 {[%clk 0:00:05]} 66... Ne6 {[%clk 0:00:12.4]} 67.
Kd6 {[%clk 0:00:04.4]} 67... Nf8 {[%clk 0:00:12.9]} 68. Ke5 {[%clk 0:00:03.7]}
68... Kxh4 {[%clk 0:00:13.1]} 69. Kf6 {[%clk 0:00:03.7]} 69... Kh3 {[%clk
0:00:13.5]} 70. Ke7 {[%clk 0:00:03.5]} 70... Kxh2 {[%clk 0:00:13.9]} 71. Kxf8
{[%clk 0:00:03.3]} 71... d5 {[%clk 0:00:13.7]} 0-1

[Event "Early-Titled-Tuesday-Blitz-October-10-2023"]
[Site "Chess.com"]
[Date "2023.10.10"]
[Round "5"]
[White "Mr_Lion22"]
[Black "DarZay"]
[Result "1-0"]
[WhiteElo "2522"]
[BlackElo "2235"]
[TimeControl "180+1"]
[EndTime "8:55:25 PDT"]
[Termination "Mr_Lion22 won on time"]

1. d4 {[%clk 0:02:54.8]} 1... d5 {[%clk 0:02:59]} 2. c4 {[%clk 0:02:55.1]} 2...
e6 {[%clk 0:02:58.6]} 3. Nc3 {[%clk 0:02:55.5]} 3... Be7 {[%clk 0:02:57.9]} 4.
cxd5 {[%clk 0:02:52.4]} 4... exd5 {[%clk 0:02:57.4]} 5. Nf3 {[%clk 0:02:53.3]}
5... c6 {[%clk 0:02:56.8]} 6. Qc2 {[%clk 0:02:51.1]} 6... Nf6 {[%clk 0:02:55.7]}
7. Bg5 {[%clk 0:02:50.3]} 7... O-O {[%clk 0:02:43.7]} 8. e3 {[%clk 0:02:49.7]}
8... Ne4 {[%clk 0:02:41.9]} 9. Bxe7 {[%clk 0:02:43.8]} 9... Qxe7 {[%clk
0:02:39.7]} 10. Bd3 {[%clk 0:02:44.7]} 10... f5 {[%clk 0:02:39]} 11. Ne5 {[%clk
0:02:25.4]} 11... Nd7 {[%clk 0:02:31.9]} 12. Nxd7 {[%clk 0:02:25.4]} 12... Bxd7
{[%clk 0:02:31.2]} 13. O-O-O {[%clk 0:02:25.1]} 13... b5 {[%clk 0:02:26.7]} 14.
Kb1 {[%clk 0:02:24.4]} 14... a5 {[%clk 0:02:22.9]} 15. Rhe1 {[%clk 0:01:40.8]}
15... a4 {[%clk 0:02:18.2]} 16. f3 {[%clk 0:01:40]} 16... Nd6 {[%clk 0:02:16.3]}
17. Ne2 {[%clk 0:01:35.1]} 17... Qxe3 {[%clk 0:02:07.4]} 18. Ng3 {[%clk
0:01:33.6]} 18... Qg5 {[%clk 0:02:01.8]} 19. Qc5 {[%clk 0:01:26]} 19... Qg6
{[%clk 0:01:49]} 20. Re7 {[%clk 0:01:20.8]} 20... Rf7 {[%clk 0:01:47.6]} 21.
Rde1 {[%clk 0:01:20.7]} 21... Re8 {[%clk 0:01:41.8]} 22. Rxe8+ {[%clk
0:01:11.2]} 22... Bxe8 {[%clk 0:01:36.8]} 23. Nxf5 {[%clk 0:01:08.6]} 23... Rxf5
{[%clk 0:01:33.2]} 24. g4 {[%clk 0:01:08.2]} 24... Bd7 {[%clk 0:01:17.3]} 25.
gxf5 {[%clk 0:01:07.8]} 25... Bxf5 {[%clk 0:01:17.3]} 26. Bxf5 {[%clk
0:01:04.6]} 26... Nxf5 {[%clk 0:01:17.1]} 27. Ka1 {[%clk 0:00:56.7]} 27... h6
{[%clk 0:01:14.9]} 28. Rc1 {[%clk 0:00:53.1]} 28... Qf6 {[%clk 0:00:57.8]} 29.
Qxc6 {[%clk 0:00:51.1]} 29... Nxd4 {[%clk 0:00:57.9]} 30. Qxd5+ {[%clk
0:00:40.5]} 30... Kh8 {[%clk 0:00:52]} 31. Rc8+ {[%clk 0:00:37.6]} 31... Kh7
{[%clk 0:00:52.1]} 32. Qe4+ {[%clk 0:00:37.6]} 32... Nf5 {[%clk 0:00:47.9]} 33.
Rc5 {[%clk 0:00:30.7]} 33... g6 {[%clk 0:00:47.9]} 34. Rc7+ {[%clk 0:00:30.2]}
34... Ng7 {[%clk 0:00:48.2]} 35. a3 {[%clk 0:00:20.1]} 35... Qd6 {[%clk
0:00:44.5]} 36. Rc6 {[%clk 0:00:14.7]} 36... Qd1+ {[%clk 0:00:35.7]} 37. Ka2
{[%clk 0:00:14.3]} 37... Qb3+ {[%clk 0:00:35.2]} 38. Kb1 {[%clk 0:00:15]} 38...
Qd1+ {[%clk 0:00:35.3]} 39. Rc1 {[%clk 0:00:15.6]} 39... Qd2 {[%clk 0:00:33.1]}
40. Rg1 {[%clk 0:00:15.6]} 40... Nf5 {[%clk 0:00:31.6]} 41. h4 {[%clk
0:00:15.3]} 41... h5 {[%clk 0:00:29.1]} 42. Qc6 {[%clk 0:00:08.7]} 42... Nxh4
{[%clk 0:00:22.5]} 43. Qxb5 {[%clk 0:00:09.3]} 43... Nxf3 {[%clk 0:00:17.5]} 44.
Qb7+ {[%clk 0:00:08.4]} 44... Kh6 {[%clk 0:00:17.7]} 45. Qxf3 {[%clk 0:00:08.9]}
45... h4 {[%clk 0:00:16.2]} 46. Qg4 {[%clk 0:00:07.3]} 46... g5 {[%clk
0:00:16.3]} 47. Qe6+ {[%clk 0:00:06.5]} 47... Kh5 {[%clk 0:00:16.4]} 48. Qf5
{[%clk 0:00:04.8]} 48... Qe3 {[%clk 0:00:14.7]} 49. Rg4 {[%clk 0:00:03.2]} 49...
Qd2 {[%clk 0:00:12.9]} 50. Rg1 {[%clk 0:00:02]} 50... Qe3 {[%clk 0:00:09.7]} 51.
Qg4+ {[%clk 0:00:02.4]} 51... Kg6 {[%clk 0:00:09.3]} 52. Ka2 {[%clk 0:00:02.6]}
52... Qd2 {[%clk 0:00:07.1]} 53. Qxh4 {[%clk 0:00:02.1]} 53... Qd5+ {[%clk
0:00:05.9]} 54. Ka1 {[%clk 0:00:02.4]} 54... Qc5 {[%clk 0:00:04.6]} 55. Qg4
{[%clk 0:00:02.7]} 55... Qd5 {[%clk 0:00:03.8]} 56. Rf1 {[%clk 0:00:03.1]} 56...
Qc5 {[%clk 0:00:03.5]} 57. Qxa4 {[%clk 0:00:02.9]} 57... Qd5 {[%clk 0:00:02.9]}
58. Qc2+ {[%clk 0:00:02.4]} 58... Kh6 {[%clk 0:00:02.7]} 59. Qf2 {[%clk
0:00:03]} 59... Kh5 {[%clk 0:00:01.8]} 60. Qh2+ {[%clk 0:00:02.8]} 60... Kg6
{[%clk 0:00:01.7]} 61. Qf2 {[%clk 0:00:03.1]} 61... Qe5 {[%clk 0:00:01.3]} 62.
Qf7+ {[%clk 0:00:03.5]} 62... Kh6 {[%clk 0:00:01.3]} 63. Rf6+ {[%clk 0:00:03.4]}
1-0

[Event "Early-Titled-Tuesday-Blitz-October-10-2023"]
[Site "Chess.com"]
[Date "2023.10.10"]
[Round "5"]
[White "feuervogel1000000"]
[Black "Grandmaster1369"]
[Result "1-0"]
[WhiteElo "2520"]
[BlackElo "2771"]
[TimeControl "180+1"]
[EndTime "8:55:27 PDT"]
[Termination "feuervogel1000000 won by checkmate"]

1. e4 {[%clk 0:02:56.5]} 1... c5 {[%clk 0:03:00.5]} 2. Nf3 {[%clk 0:02:55.2]}
2... e6 {[%clk 0:03:00.9]} 3. d4 {[%clk 0:02:52.7]} 3... cxd4 {[%clk 0:03:01.8]}
4. Nxd4 {[%clk 0:02:52.7]} 4... a6 {[%clk 0:03:02.3]} 5. Bd3 {[%clk 0:02:52.1]}
5... Bc5 {[%clk 0:03:00.8]} 6. Nb3 {[%clk 0:02:50.6]} 6... Be7 {[%clk
0:03:01.3]} 7. O-O {[%clk 0:02:48.5]} 7... d6 {[%clk 0:02:58.7]} 8. Nc3 {[%clk
0:02:47.2]} 8... Nf6 {[%clk 0:02:58.8]} 9. Be3 {[%clk 0:02:46]} 9... b5 {[%clk
0:02:59.3]} 10. a3 {[%clk 0:02:42.7]} 10... Bb7 {[%clk 0:02:59.5]} 11. f4 {[%clk
0:02:42.1]} 11... Qc7 {[%clk 0:02:59.9]} 12. Qe2 {[%clk 0:02:38.3]} 12... Nbd7
{[%clk 0:03:00.1]} 13. Rae1 {[%clk 0:02:36.5]} 13... h5 {[%clk 0:03:00.4]} 14.
Kh1 {[%clk 0:02:26.8]} 14... h4 {[%clk 0:03:00]} 15. Rf3 {[%clk 0:02:21.1]}
15... h3 {[%clk 0:02:58.7]} 16. Rg1 {[%clk 0:02:04.3]} 16... hxg2+ {[%clk
0:02:57.7]} 17. Rxg2 {[%clk 0:02:04.2]} 17... g6 {[%clk 0:02:56.9]} 18. Kg1
{[%clk 0:01:59.5]} 18... O-O-O {[%clk 0:02:55.8]} 19. Bxb5 {[%clk 0:01:46.2]}
19... axb5 {[%clk 0:02:32.2]} 20. Nxb5 {[%clk 0:01:44.8]} 20... Ba6 {[%clk
0:02:32.7]} 21. Bd4 {[%clk 0:01:03]} 21... Qb7 {[%clk 0:02:12.5]} 22. Na5 {[%clk
0:00:14.9]} 22... Bxb5 {[%clk 0:01:45.5]} 23. Rc3+ {[%clk 0:00:14.5]} 23... Kb8
{[%clk 0:01:46]} 24. Rb3 {[%clk 0:00:11.3]} 24... Bxe2 {[%clk 0:01:39.5]} 25.
Rxb7+ {[%clk 0:00:10.7]} 25... Kc8 {[%clk 0:01:39.9]} 26. Rxe2 {[%clk
0:00:09.6]} 26... Rh5 {[%clk 0:01:37.6]} 27. Ra7 {[%clk 0:00:06.1]} 27... Re8
{[%clk 0:00:39.1]} 28. Re3 {[%clk 0:00:04.9]} 28... Rb5 {[%clk 0:00:27]} 29.
Rc3+ {[%clk 0:00:04.2]} 29... Nc5 {[%clk 0:00:26.4]} 30. b4 {[%clk 0:00:04.9]}
30... Nxe4 {[%clk 0:00:25.7]} 31. Re3 {[%clk 0:00:04.4]} 31... d5 {[%clk
0:00:23.1]} 32. bxc5 {[%clk 0:00:03.6]} 32... Bxc5 {[%clk 0:00:22.7]} 33. Bxc5
{[%clk 0:00:02.7]} 33... Nxc5 {[%clk 0:00:22.2]} 34. Ra8+ {[%clk 0:00:03.6]}
34... Rb8 {[%clk 0:00:22.2]} 35. Rxb8+ {[%clk 0:00:03.9]} 35... Kxb8 {[%clk
0:00:23.1]} 36. Nc6+ {[%clk 0:00:04.3]} 36... Kc7 {[%clk 0:00:22.9]} 37. Ne5
{[%clk 0:00:05.2]} 37... f6 {[%clk 0:00:18.6]} 38. Ng4 {[%clk 0:00:05.1]} 38...
Nd7 {[%clk 0:00:17.8]} 39. Kg2 {[%clk 0:00:04.4]} 39... Kd6 {[%clk 0:00:18.3]}
40. Rd3 {[%clk 0:00:04.2]} 40... Nc5 {[%clk 0:00:15.9]} 41. Re3 {[%clk
0:00:04.2]} 41... Rf8 {[%clk 0:00:15.3]} 42. Kf3 {[%clk 0:00:04.2]} 42... Ne4
{[%clk 0:00:15.7]} 43. Nf2 {[%clk 0:00:04.6]} 43... f5 {[%clk 0:00:15.5]} 44.
Nd3 {[%clk 0:00:04.7]} 44... Rh8 {[%clk 0:00:15.3]} 45. Kg2 {[%clk 0:00:05.2]}
45... Rh4 {[%clk 0:00:15.2]} 46. Rh3 {[%clk 0:00:05.7]} 46... Rg4+ {[%clk
0:00:13.1]} 47. Kf1 {[%clk 0:00:05.9]} 47... g5 {[%clk 0:00:13.6]} 48. fxg5
{[%clk 0:00:06]} 48... Nxg5 {[%clk 0:00:14.1]} 49. Re3 {[%clk 0:00:06.2]} 49...
Ra4 {[%clk 0:00:14.1]} 50. Nb4 {[%clk 0:00:04.9]} 50... Ne4 {[%clk 0:00:12.9]}
51. h4 {[%clk 0:00:04.2]} 51... f4 {[%clk 0:00:13.3]} 52. Rd3 {[%clk 0:00:03.8]}
52... Ng3+ {[%clk 0:00:12.2]} 53. Kg2 {[%clk 0:00:04.1]} 53... Nf5 {[%clk
0:00:12.1]} 54. Kf3 {[%clk 0:00:04.1]} 54... Nxh4+ {[%clk 0:00:12.2]} 55. Kxf4
{[%clk 0:00:04.8]} 55... Ng6+ {[%clk 0:00:12.3]} 56. Kg5 {[%clk 0:00:04.8]}
56... Ne5 {[%clk 0:00:12.8]} 57. Rc3 {[%clk 0:00:05.3]} 57... Nc4 {[%clk
0:00:13.2]} 58. Nd3 {[%clk 0:00:04]} 58... Nxa3 {[%clk 0:00:10.6]} 59. Nb2
{[%clk 0:00:03.2]} 59... Ra5 {[%clk 0:00:09.9]} 60. Kf4 {[%clk 0:00:03.8]} 60...
Nb5 {[%clk 0:00:09.1]} 61. Rb3 {[%clk 0:00:03.3]} 61... Nd4 {[%clk 0:00:09.3]}
62. Rb6+ {[%clk 0:00:03.6]} 62... Kc5 {[%clk 0:00:09.8]} 63. Rb8 {[%clk
0:00:04]} 63... Ra6 {[%clk 0:00:08.8]} 64. Nd3+ {[%clk 0:00:04.6]} 64... Kc4
{[%clk 0:00:09.2]} 65. Ke3 {[%clk 0:00:05.1]} 65... Nxc2+ {[%clk 0:00:09.5]} 66.
Kd2 {[%clk 0:00:04.5]} 66... Nd4 {[%clk 0:00:09.9]} 67. Rb4# {[%clk 0:00:05.1]}
1-0